bitfinex/quotes_SOLUSD_20250306
["timestamp","ask_amount","ask_price","bid_price","bid_amount"]
[1741275300808,0.03,149.05,149.04,312.14216157]
[1741275301104,0.03,149.05,149.04,312.0]
[1741275301516,0.03,149.05,149.04,312.14216157]
[1741275301896,0.03,149.05,149.04,349.22322259]
[1741275302198,0.03,149.05,149.04,312.14216157]
[1741275303418,0.03,149.05,149.04,415.54289459]
[1741275303805,0.03,149.05,149.04,389.89932259]
[1741275304007,0.03,149.05,149.04,312.14216157]
[1741275304604,0.03,149.05,148.99,142.26]
[1741275304605,30.40146102,149.05,148.99,84.46876102]
[1741275304804,30.40146102,149.05,148.99,77.75716102]
[1741275305011,30.40146102,149.05,149.0,0.14216157]
[1741275305320,0.03,149.05,149.01,49.02110988]
[1741275305622,0.03,149.05,149.02,30.51362259]
[1741275305919,0.03,149.05,149.02,0.14216157]
[1741275306124,30.40146102,149.05,148.99,84.46896102]
[1741275306300,30.40146102,149.05,148.99,77.75716102]
[1741275306494,30.37146102,149.04,149.0,0.14216157]
[1741275306718,30.37146102,149.02,148.96,6.92624235]
[1741275306899,30.37146102,149.01,148.96,0.21324235]
[1741275307101,30.37146102,149.01,148.95,30.37146102]
[1741275307416,30.37146102,149.02,148.96,30.51362259]
[1741275307729,80.8,149.03,148.98,312.0]
[1741275307908,0.03,149.05,149.01,49.16327145]
[1741275308228,30.40146102,149.14,149.06,0.14216157]
[1741275308430,30.40146102,149.14,149.1,0.14216157]
[1741275308431,0.03,149.14,149.1,0.14216157]
[1741275309110,30.40146102,149.14,149.09,0.14216157]
[1741275309626,30.40146102,149.14,149.06,77.75716102]
[1741275309627,30.37146102,149.12,149.06,77.75716102]
[1741275309799,37.07856102,149.1,149.05,0.14216157]
[1741275310006,30.37146102,149.07,149.02,47.3857]
[1741275310206,30.37146102,149.07,149.01,7.76]
[1741275310425,30.37146102,149.07,149.02,0.14216157]
[1741275310613,30.37146102,149.05,148.99,49.02110988]
[1741275310933,30.37146102,149.09,149.04,0.14216157]
[1741275311123,6.7065,149.11,149.06,0.14216157]
[1741275311301,37.07796102,149.11,149.06,0.14216157]
[1741275311499,30.37146102,149.1,149.06,0.14216157]
[1741275311703,37.07796102,149.11,149.05,0.14216157]
[1741275311902,44.86666102,149.14,149.09,0.14216157]
[1741275312135,37.10666102,149.14,149.09,0.14216157]
[1741275312310,30.37146102,149.12,149.09,0.14216157]
[1741275312705,30.37146102,149.11,149.06,0.14216157]
[1741275312927,30.37146102,149.12,149.06,30.51362259]
[1741275313111,30.37146102,149.12,149.06,0.14216157]
[1741275313506,23.4979,149.14,149.07,0.14216157]
[1741275313738,30.37146102,149.12,149.07,0.14216157]
[1741275313928,6.7064,149.11,149.07,0.14216157]
[1741275314227,6.7064,149.11,149.06,0.14216157]
[1741275314401,0.03,149.09,149.08,20.14216157]
[1741275314608,0.03,149.09,149.08,428.83329459]
[1741275314803,0.03,149.14,149.1,0.42648471]
[1741275315022,0.03,149.14,149.12,0.14216157]
[1741275315329,6.7352,149.14,149.12,0.14216157]
[1741275315502,37.10666102,149.14,149.11,0.14216157]
[1741275316125,37.10666102,149.14,149.09,0.14216157]
[1741275316407,30.37146102,149.11,149.06,47.3857]
[1741275316615,23.4979,149.14,149.03,30.37146102]
[1741275316616,30.37146102,149.09,149.03,30.37146102]
[1741275316828,30.37146102,149.04,149.02,0.033]
[1741275317010,30.37146102,149.03,149.02,0.033]
[1741275317208,1.41370983,149.07,149.02,0.033]
[1741275317409,80.8,149.07,149.02,0.033]
[1741275317630,30.37146102,149.05,149.02,0.033]
[1741275317839,30.37146102,149.03,149.02,0.033]
[1741275318139,37.08146102,149.03,149.02,0.033]
[1741275319433,234.95292204,149.03,149.02,0.0001]
[1741275319935,167.5,149.03,149.02,0.0001]
[1741275320118,159.76,149.03,149.02,0.0001]
[1741275322113,277.64146102,149.03,149.02,0.0001]
[1741275323038,343.4376709,149.03,148.94,0.033]
[1741275323235,30.37146102,148.96,148.94,0.033]
[1741275323435,7.74,148.99,148.94,0.033]
[1741275323609,30.37146102,148.95,148.94,0.033]
[1741275323811,30.37146102,148.96,148.94,0.033]
[1741275324026,37.08506102,148.95,148.94,0.033]
[1741275324516,56.07608873,148.95,148.94,0.033]
[1741275325120,57.48979856,148.95,148.94,0.033]
[1741275326231,56.07608873,148.95,148.94,0.033]
[1741275326627,49.36248873,148.95,148.94,0.033]
[1741275327345,56.07608873,148.95,148.94,0.033]
[1741275327549,80.8,148.96,148.94,0.033]
[1741275327756,130.16248873,148.96,148.94,0.033]
[1741275328538,49.36248873,148.95,148.94,0.033]
[1741275329260,50.77619856,148.95,148.94,0.033]
[1741275330465,76.13944742,148.95,148.94,0.033]
[1741275330655,18.64964886,148.94,148.9,0.033]
[1741275330957,68.01213759,148.91,148.9,0.033]
[1741275331158,227.85213759,148.91,148.9,0.033]
[1741275331455,227.85213759,148.91,148.9,0.0001]
[1741275331631,277.21462632,148.91,148.87,0.033]
[1741275331829,49.36248873,148.88,148.87,0.033]
[1741275332348,56.07928873,148.88,148.87,0.033]
[1741275332752,49.36248873,148.88,148.87,0.033]
[1741275332951,49.36248873,148.9,148.87,0.033]
[1741275333670,159.84,148.91,148.87,0.033]
[1741275333831,209.20248873,148.91,148.87,0.033]
[1741275334037,159.84,148.91,148.88,0.14216157]
[1741275334235,159.84,148.91,148.88,49.5046503]
[1741275334548,57.10248873,148.96,148.9,0.14216157]
[1741275334859,49.36248873,148.93,148.9,0.14216157]
[1741275335032,49.36248873,148.93,148.89,47.3857]
[1741275335033,49.36248873,148.93,148.89,0.14216157]
[1741275335229,49.36248873,148.94,148.89,0.14216157]
[1741275335434,130.16248873,148.96,148.91,18.79181043]
[1741275335744,49.36248873,148.96,148.93,0.14216157]
[1741275335957,49.36248873,148.94,148.93,0.14216157]
[1741275336156,80.8,148.98,148.93,0.14216157]
[1741275336347,49.36248873,148.96,148.91,0.14216157]
[1741275336666,130.16248873,148.98,148.93,0.14216157]
[1741275337039,159.9,148.99,148.95,0.14216157]
[1741275337545,49.36248873,148.97,148.9,20.0]
[1741275337758,49.36248873,148.96,148.91,0.14216157]
[1741275337955,159.9,148.99,148.93,0.14216157]
[1741275338156,159.9,148.99,148.95,0.14216157]
[1741275338536,159.9,148.99,148.96,6.7132]
[1741275338767,159.9,148.99,148.97,0.14216157]
[1741275339268,49.36248873,149.03,148.97,361.5046503]
[1741275339555,49.36248873,149.04,148.99,0.14216157]
[1741275339959,80.8,149.06,148.99,49.5046503]
[1741275340160,49.36248873,149.07,149.01,49.5046503]
[1741275340659,159.88,149.08,149.03,49.5046503]
[1741275341254,159.88,149.08,149.03,18.79181043]
[1741275341859,159.88,149.08,149.05,0.14216157]
[1741275342536,166.5878,149.08,149.04,0.14216157]
[1741275342739,159.88,149.08,149.07,0.14216157]
[1741275343139,159.88,149.08,149.06,0.14216157]
[1741275343778,215.95038873,149.08,149.03,0.14216157]
[1741275344064,49.36248873,149.07,149.03,0.14216157]
[1741275344368,49.36248873,149.07,149.02,0.14216157]
[1741275344740,6.7087,149.06,149.02,0.14216157]
[1741275345040,49.36248873,149.04,149.0,134.5]
[1741275345250,49.36248873,149.03,148.98,47.3857]
[1741275345440,49.36248873,149.02,148.98,47.3857]
[1741275345645,49.36248873,149.01,148.97,6.0083]
[1741275345856,49.36248873,149.0,148.95,47.3857]
[1741275346161,49.36248873,148.97,148.93,47.3857]
[1741275346361,49.36248873,148.97,148.92,6.1101]
[1741275346663,49.36248873,148.96,148.93,0.14216157]
[1741275346839,56.07578873,148.96,148.93,0.14216157]
[1741275347035,6.7128,148.97,148.93,0.14216157]
[1741275347343,49.36248873,148.98,148.93,0.14216157]
[1741275347546,49.36248873,148.99,148.93,6.85646157]
[1741275347746,49.36248873,149.0,148.95,0.14216157]
[1741275348152,49.36248873,149.01,148.95,68.15429916]
[1741275348573,136.87308873,149.02,148.95,68.15429916]
[1741275348778,49.36248873,149.03,148.97,49.5046503]
[1741275349072,49.36248873,149.06,149.01,0.14216157]
[1741275349262,49.36248873,149.06,149.04,0.14216157]
[1741275349773,49.36248873,149.06,149.01,0.14216157]
[1741275350162,49.36248873,149.07,149.01,0.14216157]
[1741275350361,49.36248873,149.07,149.02,0.14216157]
[1741275350864,49.36248873,149.07,148.98,67.72868342]
[1741275350865,6.7087,149.06,149.01,0.14216157]
[1741275351059,290.04248873,149.08,149.01,49.5046503]
[1741275351265,240.68,149.08,149.03,0.14216157]
[1741275351462,240.68,149.08,149.04,0.14216157]
[1741275351772,159.88,149.08,149.04,0.14216157]
[1741275351980,159.88,149.08,149.04,49.5046503]
[1741275352182,159.88,149.08,149.06,0.14216157]
[1741275352681,159.88,149.08,149.07,312.14216157]
[1741275353057,159.88,149.08,149.07,0.14216157]
[1741275353258,166.5878,149.08,149.07,0.14216157]
[1741275353577,159.88,149.08,149.07,0.14216157]
[1741275353978,166.5878,149.08,149.07,0.14216157]
[1741275354186,215.95028873,149.08,149.07,312.14216157]
[1741275354487,215.95028873,149.08,149.07,0.14216157]
[1741275354655,215.95028873,149.08,149.01,47.3857]
[1741275354861,49.36248873,149.05,148.99,74.72393759]
[1741275355154,247.3879,149.08,149.03,0.14216157]
[1741275355384,166.5879,149.08,149.03,0.14216157]
[1741275355780,159.88,149.08,149.04,18.64964886]
[1741275355967,159.88,149.08,149.05,49.5046503]
[1741275356173,0.03,149.09,149.05,49.5046503]
[1741275357259,0.03,149.09,149.05,0.14216157]
[1741275357465,0.03,149.09,149.08,312.14216157]
[1741275358256,0.03,149.14,149.08,514.9386223]
[1741275358457,0.03,149.14,149.13,68.15429916]
[1741275358656,0.03,149.14,149.13,130.63830877]
[1741275358888,0.03,149.18,149.15,0.42648471]
[1741275359084,0.03,149.18,149.17,39.07613357]
[1741275359292,0.03,149.18,149.17,120.37613357]
[1741275359578,0.03,149.18,149.17,150.63830877]
[1741275359963,0.03,149.18,149.17,261.46603357]
[1741275360161,0.03,149.18,149.17,321.99038397]
[1741275360376,0.01936517,149.2,149.18,19.07613357]
[1741275360597,0.01936517,149.2,149.18,69.61560364]
[1741275360953,0.01936517,149.2,149.18,76.31890364]
[1741275361572,0.01936517,149.2,149.18,388.31890364]
[1741275361766,0.01936517,149.2,149.18,386.91196339]
[1741275362774,0.01936517,149.2,149.19,69.6155074]
[1741275362977,0.03,149.21,149.2,19.07613357]
[1741275363186,0.03,149.23,149.22,19.07613357]
[1741275363386,0.0001,149.23,149.22,336.54756022]
[1741275363575,0.0001,149.23,149.22,333.14119321]
[1741275363779,0.0001,149.23,149.22,284.00866339]
[1741275365071,0.0001,149.23,149.22,290.71016339]
[1741275365766,0.0001,149.23,149.22,461.50866339]
[1741275365966,0.0001,149.23,149.22,412.09181043]
[1741275366198,0.0001,149.23,149.22,468.21016339]
[1741275366401,0.03,149.27,149.26,20.14216157]
[1741275366589,55.85832982,149.35,149.27,19.07613357]
[1741275366776,0.03,149.35,149.34,0.14216157]
[1741275367100,0.03,149.35,149.34,74.90476339]
[1741275367278,0.0001,149.35,149.34,290.70476339]
[1741275367605,0.03,149.42,149.39,19.07613357]
[1741275367800,0.03,149.42,149.41,67.92434025]
[1741275368172,0.03,149.42,149.41,68.20866339]
[1741275368573,0.03,149.42,149.41,18.79181043]
[1741275369090,0.03,149.42,149.41,74.90156339]
[1741275369290,0.03,149.42,149.41,68.20866339]
[1741275369605,0.03,149.42,149.41,380.20866339]
[1741275369901,0.03,149.42,149.41,312.14216157]
[1741275370400,0.03,149.42,149.41,380.20866339]
[1741275370605,0.03,149.42,149.41,386.90156339]
[1741275370806,0.03,149.42,149.41,380.20866339]
[1741275371308,0.03,149.42,149.41,461.50866339]
[1741275371994,0.03,149.42,149.41,468.20156339]
[1741275372196,159.62,149.5,149.43,0.14216157]
[1741275372402,159.62,149.5,149.47,0.14216157]
[1741275372569,6.6891,149.5,149.47,0.14216157]
[1741275373004,49.13252982,149.48,149.41,81.3]
[1741275373207,49.13252982,149.47,149.42,18.79181043]
[1741275373581,6.6885,149.51,149.4,18.64964886]
[1741275373582,7.7,149.49,149.4,18.64964886]
[1741275373833,49.13252982,149.41,149.35,130.64577217]
[1741275374001,49.13252982,149.4,149.36,18.64964886]
[1741275374313,49.13252982,149.4,149.37,0.14216157]
[1741275374522,49.13252982,149.39,149.33,7.7]
[1741275374874,49.13252982,149.4,149.34,67.78217868]
[1741275375075,6.6938,149.39,149.34,67.78217868]
[1741275375274,49.13252982,149.42,149.37,0.14216157]
[1741275375578,176.1677,149.46,149.42,0.14216157]
[1741275375786,49.13252982,149.44,149.42,0.14216157]
[1741275376302,176.1677,149.46,149.39,0.14216157]
[1741275376609,49.13252982,149.42,149.39,0.14216157]
[1741275376789,49.13252982,149.4,149.35,81.3]
[1741275377105,49.13252982,149.41,149.35,67.78217868]
[1741275377292,6.692,149.43,149.36,49.13252982]
[1741275377493,49.13252982,149.42,149.37,0.14216157]
[1741275378084,6.692,149.43,149.34,81.3]
[1741275378085,49.13252982,149.39,149.34,81.3]
[1741275378286,49.13252982,149.39,149.35,18.64964886]
[1741275378491,49.13252982,149.4,149.35,18.64964886]
[1741275378711,49.13252982,149.39,149.36,0.14216157]
[1741275379007,49.13252982,149.38,149.36,312.0]
[1741275379418,49.13252982,149.39,149.37,0.14216157]
[1741275380286,98.26505964,149.38,149.3,18.64964886]
[1741275380514,49.13252982,149.38,149.29,6.5766]
[1741275380717,49.13252982,149.33,149.27,56.83252982]
[1741275381016,49.13252982,149.34,149.28,67.78217868]
[1741275381224,16.7342,149.4,149.31,67.78217868]
[1741275381390,49.13252982,149.35,149.32,0.14216157]
[1741275381584,49.13252982,149.34,149.29,18.64964886]
[1741275381801,87.4938,149.39,149.31,18.64964886]
[1741275382012,6.6934,149.4,149.34,0.14216157]
[1741275382197,49.13252982,149.38,149.34,0.14216157]
[1741275382394,49.13252982,149.35,149.31,81.3]
[1741275382596,1.41370983,149.39,149.28,89.0]
[1741275382597,49.13252982,149.33,149.28,89.0]
[1741275382795,80.8,149.36,149.26,25.34914886]
[1741275382985,49.13252982,149.34,149.29,0.14216157]
[1741275383189,49.13252982,149.35,149.29,49.13252982]
[1741275383412,49.13252982,149.35,149.31,312.0]
[1741275383598,80.8,149.36,149.32,0.14216157]
[1741275383797,49.13252982,149.35,149.32,0.14216157]
[1741275384299,49.13252982,149.35,149.29,0.42648471]
[1741275384627,49.13252982,149.33,149.28,99.94964886]
[1741275384813,49.13252982,149.34,149.29,0.14216157]
[1741275384997,49.13252982,149.35,149.31,0.14216157]
[1741275385201,49.13252982,149.36,149.31,0.14216157]
[1741275385522,72.56272982,149.38,149.3,0.14216157]
[1741275385703,49.13252982,149.35,149.3,0.14216157]
[1741275386215,49.13252982,149.33,149.3,0.14216157]
[1741275386403,49.13252982,149.33,149.29,0.14216157]
[1741275386602,80.8,149.37,149.29,0.14216157]
[1741275386603,55.82952982,149.32,149.29,0.14216157]
[1741275386920,49.13252982,149.32,149.3,312.0]
[1741275387086,49.13252982,149.35,149.31,0.14216157]
[1741275387510,6.6952,149.36,149.31,0.14216157]
[1741275388020,49.13252982,149.4,149.35,0.14216157]
[1741275388414,6.6929,149.41,149.35,0.14216157]
[1741275388596,49.13252982,149.4,149.35,0.14216157]
[1741275389033,49.13252982,149.38,149.34,0.14216157]
[1741275389196,49.13252982,149.39,149.34,6.83826157]
[1741275389398,49.13252982,149.4,149.34,6.83826157]
[1741275389821,49.13252982,149.4,149.34,55.97079139]
[1741275390328,55.85502982,149.42,149.36,0.14216157]
[1741275390492,49.13252982,149.41,149.36,0.14216157]
[1741275390699,49.13252982,149.39,149.36,0.14216157]
[1741275390925,49.13252982,149.39,149.38,0.14216157]
[1741275391413,6.7229,149.42,149.35,0.14216157]
[1741275391596,49.13252982,149.4,149.35,0.14216157]
[1741275391795,49.13252982,149.41,149.35,67.92434025]
[1741275392224,6.7229,149.42,149.36,49.13252982]
[1741275392537,49.13252982,149.41,149.36,0.14216157]
[1741275392831,49.13252982,149.4,149.36,0.14216157]
[1741275393215,49.13252982,149.39,149.35,0.14216157]
[1741275393417,6.6933,149.41,149.35,0.14216157]
[1741275393418,49.13252982,149.38,149.35,0.14216157]
[1741275393618,49.13252982,149.37,149.35,0.14216157]
[1741275393921,6.6933,149.41,149.34,18.64964886]
[1741275394104,49.13252982,149.39,149.35,0.14216157]
[1741275394429,49.13252982,149.39,149.36,0.033]
[1741275394612,55.82722982,149.37,149.36,0.033]
[1741275394801,55.82722982,149.37,149.36,0.17516157]
[1741275395229,55.82722982,149.37,149.36,0.033]
[1741275395412,49.13252982,149.38,149.36,0.17516157]
[1741275396707,49.13252982,149.38,149.36,0.14216157]
[1741275396907,49.13252982,149.37,149.36,0.14216157]
[1741275397125,6.6934,149.4,149.36,0.14216157]
[1741275397326,49.13252982,149.38,149.34,0.14216157]
[1741275397716,49.13252982,149.39,149.34,312.14216157]
[1741275397913,49.13252982,149.37,149.34,312.14216157]
[1741275398130,49.13252982,149.36,149.34,312.0]
[1741275398303,49.13252982,149.35,149.28,18.64964886]
[1741275398504,30.22119041,149.31,149.26,81.3]
[1741275398807,30.22119041,149.31,149.26,87.9995]
[1741275399012,36.91859041,149.31,149.26,81.3]
[1741275399211,30.22119041,149.3,149.27,0.14216157]
[1741275399428,16.7407,149.34,149.27,0.14216157]
[1741275399429,6.6971,149.32,149.27,0.14216157]
[1741275399608,36.91829041,149.32,149.26,87.9996]
[1741275400010,36.91829041,149.32,149.26,81.3]
[1741275400011,30.22119041,149.3,149.26,81.3]
[1741275400805,30.22119041,149.29,149.26,81.3]
[1741275401036,30.22119041,149.28,149.24,0.21324235]
[1741275401241,30.22119041,149.26,149.24,312.0]
[1741275401445,30.22119041,149.25,149.24,312.0]
[1741275401822,30.22119041,149.25,149.22,0.033]
[1741275402038,80.8,149.29,149.22,0.033]
[1741275402039,30.22119041,149.23,149.22,0.033]
[1741275402613,49.16289048,149.23,149.22,0.033]
[1741275403318,55.86389048,149.23,149.22,0.033]
[1741275406427,49.16289048,149.23,149.22,0.033]
[1741275406727,159.48,149.26,149.22,0.033]
[1741275407027,49.16289048,149.28,149.24,0.14216157]
[1741275407210,129.96289048,149.29,149.24,0.14216157]
[1741275407410,49.16289048,149.29,149.24,0.14216157]
[1741275407828,49.16289048,149.3,149.24,49.30505205]
[1741275408027,49.16289048,149.29,149.24,0.14216157]
[1741275408233,49.16289048,149.28,149.24,0.14216157]
[1741275408621,240.32,149.34,149.24,100.09181043]
[1741275408828,49.16289048,149.31,149.26,0.14216157]
[1741275409122,49.16289048,149.32,149.28,0.14216157]
[1741275409430,49.16289048,149.33,149.28,0.14216157]
[1741275409633,49.16289048,149.33,149.3,0.14216157]
[1741275409831,248.03,149.42,149.31,49.16289048]
[1741275410132,159.55,149.42,149.36,0.14216157]
[1741275410322,208.71289048,149.42,149.36,0.14216157]
[1741275410721,159.55,149.42,149.36,49.30505205]
[1741275410941,49.16289048,149.41,149.36,18.79181043]
[1741275411147,49.16289048,149.41,149.36,25.48681043]
[1741275411309,208.71289048,149.42,149.36,74.64970091]
[1741275411515,0.03,149.42,149.4,0.14216157]
[1741275411939,0.03,149.42,149.4,18.79181043]
[1741275412325,0.03,149.42,149.39,0.14216157]
[1741275413035,0.03,149.42,149.41,312.14216157]
[1741275414016,49.19289048,149.42,149.41,312.14216157]
[1741275414825,49.19289048,149.42,149.33,13.8245]
[1741275415030,0.03,149.42,149.34,18.64964886]
[1741275415231,49.16289048,149.39,149.35,0.14216157]
[1741275415427,49.16289048,149.4,149.35,0.14216157]
[1741275415618,49.16289048,149.39,149.35,0.14216157]
[1741275416230,0.03,149.42,149.35,0.14216157]
[1741275416406,49.16289048,149.39,149.35,0.14216157]
[1741275416838,49.16289048,149.38,149.35,0.14216157]
[1741275417006,49.16289048,149.37,149.34,0.14216157]
[1741275417207,49.16289048,149.35,149.29,18.64964886]
[1741275417429,49.16289048,149.35,149.3,0.14216157]
[1741275417642,49.16289048,149.35,149.29,67.81253934]
[1741275417939,49.16289048,149.35,149.32,312.0]
[1741275418235,49.16289048,149.33,149.28,87.319]
[1741275418432,49.16289048,149.3,149.25,81.51324235]
[1741275418821,49.16289048,149.3,149.26,0.14216157]
[1741275419027,6.6983,149.29,149.26,0.14216157]
[1741275419334,6.697,149.32,149.24,49.19589048]
[1741275419518,49.16289048,149.28,149.24,0.033]
[1741275419832,49.16289048,149.31,149.24,0.033]
[1741275419833,49.16289048,149.25,149.24,0.033]
[1741275420531,98.32578096,149.25,149.24,0.033]
[1741275420717,99.73949079,149.25,149.24,0.033]
[1741275421119,106.43959079,149.25,149.24,0.033]
[1741275422244,105.02588096,149.25,149.24,0.033]
[1741275422444,123.67552982,149.25,149.22,0.033]
[1741275422742,123.67552982,149.25,149.21,0.033]
[1741275422743,49.16289048,149.23,149.21,0.033]
[1741275422916,71.22624917,149.24,149.21,0.033]
[1741275422917,1.41370983,149.22,149.21,0.033]
[1741275423237,8.11520983,149.22,149.21,0.033]
[1741275423538,49.16289048,149.22,149.21,0.033]
[1741275423837,55.86439048,149.22,149.21,0.033]
[1741275424523,49.16289048,149.22,149.21,0.033]
[1741275425720,129.96289048,149.22,149.21,0.033]
[1741275426125,80.8,149.22,149.21,0.033]
[1741275426445,159.44,149.27,149.21,0.17516157]
[1741275426620,159.44,149.27,149.23,0.14216157]
[1741275427224,159.44,149.27,149.22,0.14216157]
[1741275427625,159.44,149.27,149.24,0.14216157]
[1741275428244,49.16289048,149.25,149.21,0.17516157]
[1741275428441,49.16289048,149.24,149.21,0.17516157]
[1741275428627,49.16289048,149.24,149.23,312.14216157]
[1741275429327,49.16289048,149.24,149.23,0.14216157]
[1741275429547,55.86349048,149.24,149.23,0.14216157]
[1741275429717,105.02638096,149.24,149.21,0.033]
[1741275429925,80.8,149.24,149.21,0.033]
[1741275430232,49.16289048,149.23,149.21,0.17516157]
[1741275430541,49.16289048,149.22,149.21,0.17516157]
[1741275430844,80.8,149.24,149.21,0.033]
[1741275430845,49.16289048,149.23,149.21,0.033]
[1741275431228,49.16289048,149.23,149.22,0.14216157]
[1741275431628,80.8,149.3,149.22,0.42648471]
[1741275431844,49.16289048,149.3,149.24,49.30505205]
[1741275432043,49.16289048,149.32,149.26,67.95470091]
[1741275432425,49.16289048,149.32,149.31,0.14216157]
[1741275432755,49.16289048,149.34,149.31,0.14216157]
[1741275432959,49.16289048,149.34,149.29,18.79181043]
[1741275433156,49.16289048,149.32,149.29,0.14216157]
[1741275433449,49.16289048,149.31,149.29,0.14216157]
[1741275433631,49.16289048,149.31,149.28,0.14216157]
[1741275433837,49.16289048,149.3,149.28,0.14216157]
[1741275434143,49.16289048,149.3,149.26,18.79181043]
[1741275434327,49.16289048,149.31,149.26,18.79181043]
[1741275434761,49.16289048,149.3,149.26,0.14216157]
[1741275434954,49.16289048,149.31,149.26,0.14216157]
[1741275435139,49.16289048,149.3,149.26,0.14216157]
[1741275435454,49.16289048,149.28,149.24,0.14216157]
[1741275435952,49.16289048,149.27,149.26,312.0]
[1741275436251,49.16289048,149.27,149.22,6.5177]
[1741275436439,49.16289048,149.25,149.22,6.5177]
[1741275436625,49.16289048,149.25,149.23,0.14216157]
[1741275436825,49.16289048,149.26,149.23,0.14216157]
[1741275437031,49.16289048,149.25,149.22,0.033]
[1741275437241,80.8,149.29,149.22,0.033]
[1741275437443,49.16289048,149.27,149.22,0.17516157]
[1741275437726,0.03,149.3,149.24,0.14216157]
[1741275437932,49.19289048,149.3,149.24,0.14216157]
[1741275438147,49.16289048,149.29,149.24,0.14216157]
[1741275438954,49.16289048,149.28,149.24,0.14216157]
[1741275439256,55.86219048,149.27,149.25,0.14216157]
[1741275439444,80.8,149.29,149.25,0.14216157]
[1741275439828,80.8,149.29,149.25,6.84226157]
[1741275441052,0.03,149.3,149.27,0.14216157]
[1741275442070,0.03,149.3,149.29,0.14216157]
[1741275442760,49.19289048,149.3,149.29,312.14216157]
[1741275442968,0.03,149.3,149.29,312.14216157]
[1741275443258,49.19289048,149.3,149.29,0.14216157]
[1741275443457,55.89079048,149.3,149.29,0.14216157]
[1741275443669,55.89079048,149.3,149.25,7.66]
[1741275443957,49.16289048,149.28,149.22,18.68264886]
[1741275444162,49.16289048,149.28,149.23,0.14216157]
[1741275444367,0.03,149.3,149.25,0.14216157]
[1741275444550,55.89079048,149.3,149.25,0.14216157]
[1741275444736,0.03,149.3,149.27,0.14216157]
[1741275444935,0.03,149.3,149.27,18.79181043]
[1741275445164,0.03,149.3,149.27,67.95470091]
[1741275445475,0.03,149.3,149.29,0.14216157]
[1741275446343,0.03,149.3,149.29,330.79181043]
[1741275446573,0.03,149.3,149.29,312.14216157]
[1741275447437,55.89079048,149.3,149.29,312.14216157]
[1741275447635,55.89079048,149.3,149.26,0.14216157]
[1741275448275,49.16289048,149.28,149.23,18.64964886]
[1741275448438,49.16289048,149.28,149.23,99.94964886]
[1741275448641,49.16289048,149.28,149.24,0.14216157]
[1741275449456,0.03,149.3,149.26,6.84146157]
[1741275449648,49.16289048,149.29,149.26,0.14216157]
[1741275449964,49.16289048,149.28,149.25,81.3]
[1741275450165,49.16289048,149.28,149.26,0.14216157]
[1741275450560,49.16289048,149.28,149.27,312.14216157]
[1741275450765,49.16289048,149.29,149.28,0.14216157]
[1741275451238,0.03,149.3,149.26,0.14216157]
[1741275451443,49.19289048,149.3,149.26,6.84186157]
[1741275451638,0.03,149.3,149.28,18.79181043]
[1741275451875,0.03,149.3,149.29,49.58937519]
[1741275452051,0.03,149.3,149.29,130.88937519]
[1741275452243,0.03,149.3,149.29,149.53902405]
[1741275452438,0.03,149.3,149.29,284.03902405]
[1741275452648,0.03,149.35,149.33,20.14216157]
[1741275452857,0.03,149.35,149.34,18.79181043]
[1741275453073,0.03,149.35,149.34,67.95470091]
[1741275453274,0.03,149.35,149.34,0.14216157]
[1741275453671,0.03,149.35,149.34,6.83826157]
[1741275453989,0.03,149.35,149.34,25.48791043]
[1741275454153,0.03,149.35,149.34,330.79181043]
[1741275454661,0.03,149.35,149.34,337.48791043]
[1741275454870,0.03,149.35,149.34,330.79181043]
[1741275455177,0.03,149.35,149.34,312.0]
[1741275455377,0.03,149.35,149.34,312.14216157]
[1741275455579,0.03,149.35,149.34,330.79181043]
[1741275455787,0.03,149.35,149.34,468.23512405]
[1741275456078,0.03,149.39,149.37,0.14216157]
[1741275456982,0.03,149.39,149.37,68.23902405]
[1741275457481,0.03,149.39,149.37,19.07613357]
[1741275457680,0.03,149.39,149.37,0.14216157]
[1741275457980,49.19289048,149.39,149.34,18.79181043]
[1741275458166,49.16289048,149.38,149.34,99.94964886]
[1741275458351,49.19289048,149.39,149.34,99.94964886]
[1741275458551,49.16289048,149.37,149.33,7.66]
[1741275458751,49.16289048,149.38,149.34,0.14216157]